[Event "Titled Tuesday Blitz September 14 2021"]
[White "Ibrahimli, Murad"]
[Black "Reprintsev, Alexander"]
[WhiteFideId "13410229"]
[BlackFideId "14100541"]
[WhiteElo "2109"]
[BlackElo "2126"]
[Result "1-0"]
[Round "01"]
[TimeControl "180+1"]
[Date "2021.09.15"]
[WhiteClock "0:00:23"]
[BlackClock "0:00:16"]

1. Nf3 {[%clk 0:02:52]}  d5 {[%clk 0:02:55]} 2. e3 {[%clk 0:02:51]}  Nc6 {[%clk 0:02:46]} 3. Bb5 {[%clk 0:02:49]}  Qd6 {[%clk 0:02:45]} 4. b3 {[%clk 0:02:44]}  a6 {[%clk 0:02:44]} 5. Bxc6+ {[%clk 0:02:34]}  Qxc6 {[%clk 0:02:44]} 6. O-O {[%clk 0:02:29]}  Bg4 {[%clk 0:02:30]} 7. Nc3 {[%clk 0:02:07]}  Nh6 {[%clk 0:01:31]} 8. Ne5 {[%clk 0:02:00]}  Bxd1 {[%clk 0:01:25]} 9. Nxc6 {[%clk 0:02:00]}  Bxc2 {[%clk 0:01:24]} 10. Nb4 {[%clk 0:02:00]}  Bg6 {[%clk 0:01:18]} 11. Nbxd5 {[%clk 0:01:59]}  O-O-O {[%clk 0:01:16]} 12. Nf4 {[%clk 0:01:58]}  Bd3 {[%clk 0:01:13]} 13. Nxd3 {[%clk 0:01:54]}  Rxd3 {[%clk 0:01:14]} 14. f4 {[%clk 0:01:40]}  e6 {[%clk 0:01:13]} 15. Ne4 {[%clk 0:01:39]}  Be7 {[%clk 0:01:10]} 16. Kf2 {[%clk 0:01:36]}  Rhd8 {[%clk 0:01:09]} 17. Ke2 {[%clk 0:01:37]}  f5 {[%clk 0:00:55]} 18. Nf2 {[%clk 0:01:36]}  R3d5 {[%clk 0:00:50]} 19. d3 {[%clk 0:01:27]}  Bf6 {[%clk 0:00:46]} 20. Rb1 {[%clk 0:01:27]}  Nf7 {[%clk 0:00:41]} 21. Bd2 {[%clk 0:01:17]}  e5 {[%clk 0:00:41]} 22. fxe5 {[%clk 0:01:06]}  Nxe5 {[%clk 0:00:41]} 23. d4 {[%clk 0:01:06]}  Nc6 {[%clk 0:00:38]} 24. Nh3 {[%clk 0:00:57]}  g6 {[%clk 0:00:38]} 25. Nf4 {[%clk 0:00:57]}  R5d7 {[%clk 0:00:38]} 26. Bc3 {[%clk 0:00:56]}  Re8 {[%clk 0:00:34]} 27. Kf3 {[%clk 0:00:52]}  Ne7 {[%clk 0:00:26]} 28. Rbe1 {[%clk 0:00:47]}  Nd5 {[%clk 0:00:26]} 29. Nxd5 {[%clk 0:00:48]}  Rxd5 {[%clk 0:00:27]} 30. g4 {[%clk 0:00:48]}  c5 {[%clk 0:00:25]} 31. e4 {[%clk 0:00:38]}  fxe4+ {[%clk 0:00:23]} 32. Rxe4 {[%clk 0:00:39]}  Rdd8 {[%clk 0:00:22]} 33. Rxe8 {[%clk 0:00:23]}  Rxe8 {[%clk 0:00:22]} 34. Rd1 {[%clk 0:00:24]}  Rd8 {[%clk 0:00:20]} 35. Ba5 {[%clk 0:00:24]}  Rd7 {[%clk 0:00:20]} 36. d5 {[%clk 0:00:24]}  Bd4 {[%clk 0:00:20]} 37. Ke4 {[%clk 0:00:24]}  Re7+ {[%clk 0:00:20]} 38. Kf4 {[%clk 0:00:24]}  Re2 {[%clk 0:00:20]} 39. d6 {[%clk 0:00:24]}  Kd7 {[%clk 0:00:19]} 40. Bc7 {[%clk 0:00:24]}  Rxh2 {[%clk 0:00:19]} 41. Re1 {[%clk 0:00:24]}  Rf2+ {[%clk 0:00:18]} 42. Kg5 {[%clk 0:00:23]}  Rf7 {[%clk 0:00:19]} 43. Kh6 {[%clk 0:00:23]}  b5 {[%clk 0:00:17]} 44. g5 {[%clk 0:00:23]}  c4 {[%clk 0:00:17]} 45. bxc4 {[%clk 0:00:23]}  bxc4 {[%clk 0:00:17]} 46. Re4 {[%clk 0:00:23]}  Bg7+ {[%clk 0:00:17]} 47. Kxh7 {[%clk 0:00:23]}  Be5+ {[%clk 0:00:17]} 48. Kxg6 {[%clk 0:00:23]}  Bxd6 {[%clk 0:00:16]} 49. Kxf7 {[%clk 0:00:23]}  Bxc7 {[%clk 0:00:16]} 50. Rxc4 {[%clk 0:00:23]} 1-0


[Site "https://www.chess.com"]

[Event "Titled Tuesday Blitz September 14 2021"]
[White "Jobava, Baadur"]
[Black "Loy, Konstantin"]
[WhiteFideId "13601520"]
[BlackFideId "14122499"]
[WhiteElo "2731"]
[BlackElo "2084"]
[Result "1-0"]
[Round "01"]
[TimeControl "180+1"]
[Date "2021.09.15"]
[WhiteClock "0:01:56"]
[BlackClock "0:00:04"]

1. e4 {[%clk 0:02:51]}  c5 {[%clk 0:02:59]} 2. d4 {[%clk 0:02:49]}  cxd4 {[%clk 0:02:59]} 3. c3 {[%clk 0:02:50]}  Nf6 {[%clk 0:02:59]} 4. e5 {[%clk 0:02:50]}  Nd5 {[%clk 0:03:00]} 5. Qxd4 {[%clk 0:02:50]}  e6 {[%clk 0:02:59]} 6. Bc4 {[%clk 0:02:51]}  Nc6 {[%clk 0:02:59]} 7. Qe4 {[%clk 0:02:51]}  f5 {[%clk 0:02:50]} 8. Qe2 {[%clk 0:02:50]}  Nb6 {[%clk 0:02:47]} 9. Bb3 {[%clk 0:02:42]}  d6 {[%clk 0:02:23]} 10. exd6 {[%clk 0:02:39]}  Qxd6 {[%clk 0:02:22]} 11. Nf3 {[%clk 0:02:39]}  Be7 {[%clk 0:02:21]} 12. O-O {[%clk 0:02:38]}  O-O {[%clk 0:02:18]} 13. Rd1 {[%clk 0:02:37]}  Qc7 {[%clk 0:02:07]} 14. Bxe6+ {[%clk 0:02:37]}  Bxe6 {[%clk 0:01:59]} 15. Qxe6+ {[%clk 0:02:38]}  Kh8 {[%clk 0:01:59]} 16. Nbd2 {[%clk 0:02:32]}  Rad8 {[%clk 0:01:40]} 17. Re1 {[%clk 0:02:32]}  Rf6 {[%clk 0:00:55]} 18. Qe2 {[%clk 0:02:29]}  Bd6 {[%clk 0:00:39]} 19. Nf1 {[%clk 0:02:20]}  Nd5 {[%clk 0:00:29]} 20. Bg5 {[%clk 0:02:18]}  Nf4 {[%clk 0:00:27]} 21. Qc2 {[%clk 0:02:10]}  Rg6 {[%clk 0:00:26]} 22. Qxf5 {[%clk 0:01:59]}  Rf8 {[%clk 0:00:23]} 23. Bxf4 {[%clk 0:01:57]}  Rxf5 {[%clk 0:00:04]} 24. Re8+ {[%clk 0:01:56]}  Rf8 {[%clk 0:00:03]} 25. Rxf8+ {[%clk 0:01:56]}  Bxf8 {[%clk 0:00:04]} 26. Bxc7 {[%clk 0:01:56]} 1-0


[Site "https://www.chess.com"]

[Event "Titled Tuesday Blitz September 14 2021"]
[White "Khusnutdinov, Rustam"]
[Black "Nazari, Arad"]
[WhiteFideId "13701703"]
[BlackFideId "12577324"]
[WhiteElo "2571"]
[BlackElo "2153"]
[Result "1/2-1/2"]
[Round "01"]
[TimeControl "180+1"]
[Date "2021.09.15"]
[WhiteClock "0:00:51"]
[BlackClock "0:00:19"]

1. e4 {[%clk 0:03:00]}  c5 {[%clk 0:02:54]} 2. Nf3 {[%clk 0:03:00]}  d6 {[%clk 0:02:55]} 3. Bb5+ {[%clk 0:02:59]}  Nd7 {[%clk 0:02:54]} 4. a4 {[%clk 0:02:57]}  a6 {[%clk 0:02:47]} 5. Be2 {[%clk 0:02:55]}  e5 {[%clk 0:02:45]} 6. O-O {[%clk 0:02:43]}  Ngf6 {[%clk 0:02:45]} 7. Nc3 {[%clk 0:02:40]}  Be7 {[%clk 0:02:42]} 8. Bc4 {[%clk 0:02:36]}  O-O {[%clk 0:02:42]} 9. a5 {[%clk 0:02:33]}  Nb8 {[%clk 0:02:36]} 10. d3 {[%clk 0:02:16]}  Nc6 {[%clk 0:02:36]} 11. Nd5 {[%clk 0:02:16]}  Nxd5 {[%clk 0:02:26]} 12. Bxd5 {[%clk 0:02:17]}  Nd4 {[%clk 0:02:27]} 13. h3 {[%clk 0:02:17]}  Qc7 {[%clk 0:02:23]} 14. Nh2 {[%clk 0:02:13]}  Be6 {[%clk 0:02:18]} 15. c3 {[%clk 0:02:12]}  Bxd5 {[%clk 0:02:11]} 16. exd5 {[%clk 0:02:08]}  Nf5 {[%clk 0:02:10]} 17. f4 {[%clk 0:02:09]}  exf4 {[%clk 0:02:08]} 18. Bxf4 {[%clk 0:02:07]}  Qd7 {[%clk 0:02:03]} 19. Qg4 {[%clk 0:02:04]}  g6 {[%clk 0:02:03]} 20. Rae1 {[%clk 0:02:01]}  h5 {[%clk 0:01:53]} 21. Qd1 {[%clk 0:01:59]}  Bh4 {[%clk 0:01:50]} 22. Re2 {[%clk 0:01:57]}  Bg3 {[%clk 0:01:50]} 23. Qd2 {[%clk 0:01:55]}  Rae8 {[%clk 0:01:45]} 24. Rxe8 {[%clk 0:01:48]}  Rxe8 {[%clk 0:01:44]} 25. Bxg3 {[%clk 0:01:49]}  Nxg3 {[%clk 0:01:44]} 26. Rf3 {[%clk 0:01:50]}  Nf5 {[%clk 0:01:40]} 27. Nf1 {[%clk 0:01:46]}  Qa4 {[%clk 0:01:37]} 28. Rxf5 {[%clk 0:01:36]}  gxf5 {[%clk 0:01:36]} 29. Ng3 {[%clk 0:01:36]}  Qh4 {[%clk 0:01:31]} 30. Kh2 {[%clk 0:01:24]}  f4 {[%clk 0:01:23]} 31. Ne4 {[%clk 0:01:24]}  f5 {[%clk 0:01:17]} 32. g3 {[%clk 0:01:20]}  fxg3+ {[%clk 0:01:15]} 33. Nxg3 {[%clk 0:01:21]}  Re5 {[%clk 0:01:01]} 34. Qh6 {[%clk 0:01:18]}  Kf7 {[%clk 0:00:36]} 35. Qxd6 {[%clk 0:00:59]}  Qf4 {[%clk 0:00:30]} 36. Qc7+ {[%clk 0:00:53]}  Kg6 {[%clk 0:00:27]} 37. Qd6+ {[%clk 0:00:53]}  Kf7 {[%clk 0:00:19]} 38. Qc7+ {[%clk 0:00:53]}  Ke8 {[%clk 0:00:19]} 39. Qb8+ {[%clk 0:00:53]}  Kf7 {[%clk 0:00:19]} 40. Qc7+ {[%clk 0:00:51]} 1/2-1/2


[Site "https://www.chess.com"]

[Event "Titled Tuesday Blitz September 14 2021"]
[White "Lashkin, Jegor"]
[Black "Federzoni, Enzo"]
[WhiteFideId "13907808"]
[BlackFideId "2173301"]
[WhiteElo "2293"]
[BlackElo "1956"]
[Result "1-0"]
[Round "01"]
[TimeControl "180+1"]
[Date "2021.09.15"]
[WhiteClock "0:01:20"]
[BlackClock "0:01:27"]

1. d4 {[%clk 0:03:00]}  Nf6 {[%clk 0:02:59]} 2. c4 {[%clk 0:03:01]}  g6 {[%clk 0:03:00]} 3. Nf3 {[%clk 0:03:01]}  Bg7 {[%clk 0:03:00]} 4. Nc3 {[%clk 0:03:02]}  d5 {[%clk 0:03:00]} 5. Bg5 {[%clk 0:03:02]}  Ne4 {[%clk 0:03:00]} 6. Bf4 {[%clk 0:03:02]}  Nxc3 {[%clk 0:02:59]} 7. bxc3 {[%clk 0:03:03]}  dxc4 {[%clk 0:02:59]} 8. e3 {[%clk 0:03:03]}  b5 {[%clk 0:02:55]} 9. Qb1 {[%clk 0:03:00]}  c6 {[%clk 0:02:47]} 10. a4 {[%clk 0:02:46]}  Qb6 {[%clk 0:02:23]} 11. axb5 {[%clk 0:02:42]}  cxb5 {[%clk 0:02:24]} 12. Bxc4 {[%clk 0:02:39]}  Bd7 {[%clk 0:02:17]} 13. Ne5 {[%clk 0:02:30]}  Bxe5 {[%clk 0:02:00]} 14. Bxe5 {[%clk 0:02:30]}  O-O {[%clk 0:02:01]} 15. Be2 {[%clk 0:02:16]}  Nc6 {[%clk 0:01:56]} 16. Bg3 {[%clk 0:02:11]}  b4 {[%clk 0:01:52]} 17. cxb4 {[%clk 0:02:06]}  Nxb4 {[%clk 0:01:53]} 18. O-O {[%clk 0:02:04]}  a5 {[%clk 0:01:53]} 19. Qb2 {[%clk 0:01:52]}  Bb5 {[%clk 0:01:46]} 20. Rfc1 {[%clk 0:01:40]}  Bxe2 {[%clk 0:01:37]} 21. Qxe2 {[%clk 0:01:39]}  Rfc8 {[%clk 0:01:37]} 22. Rcb1 {[%clk 0:01:36]}  Qc6 {[%clk 0:01:29]} 23. h3 {[%clk 0:01:31]}  h5 {[%clk 0:01:28]} 24. Rb3 {[%clk 0:01:22]}  Qc2 {[%clk 0:01:26]} 25. Qxc2 {[%clk 0:01:20]}  Rxc2 {[%clk 0:01:27]} 26. Rxb4 {[%clk 0:01:20]} 1-0


[Site "https://www.chess.com"]

[Event "Titled Tuesday Blitz September 14 2021"]
[White "Marra, Eduardo da Costa"]
[Black "Bortnyk, Olexandr"]
[WhiteFideId "2106990"]
[BlackFideId "14120828"]
[WhiteElo "2262"]
[BlackElo "2723"]
[Result "0-1"]
[Round "01"]
[TimeControl "180+1"]
[Date "2021.09.15"]
[WhiteClock "0:00:01"]
[BlackClock "0:00:21"]

1. e4 {[%clk 0:02:55]}  Nf6 {[%clk 0:02:55]} 2. Nc3 {[%clk 0:02:54]}  d5 {[%clk 0:02:52]} 3. e5 {[%clk 0:02:53]}  Nfd7 {[%clk 0:02:52]} 4. f4 {[%clk 0:02:50]}  c5 {[%clk 0:02:50]} 5. Nf3 {[%clk 0:02:47]}  Nc6 {[%clk 0:02:48]} 6. d4 {[%clk 0:02:47]}  cxd4 {[%clk 0:02:41]} 7. Nxd4 {[%clk 0:02:47]}  Nxd4 {[%clk 0:02:42]} 8. Qxd4 {[%clk 0:02:46]}  e6 {[%clk 0:02:43]} 9. Be3 {[%clk 0:02:45]}  Bc5 {[%clk 0:02:41]} 10. Qd2 {[%clk 0:02:45]}  Qb6 {[%clk 0:02:40]} 11. Bxc5 {[%clk 0:02:42]}  Nxc5 {[%clk 0:02:41]} 12. O-O-O {[%clk 0:02:41]}  O-O {[%clk 0:02:35]} 13. h4 {[%clk 0:02:38]}  Bd7 {[%clk 0:02:30]} 14. h5 {[%clk 0:02:38]}  Rfc8 {[%clk 0:02:26]} 15. h6 {[%clk 0:02:35]}  g6 {[%clk 0:02:24]} 16. Rh3 {[%clk 0:02:33]}  a6 {[%clk 0:02:01]} 17. g4 {[%clk 0:02:29]}  Bb5 {[%clk 0:02:00]} 18. Bg2 {[%clk 0:01:51]}  Rd8 {[%clk 0:01:34]} 19. Qd4 {[%clk 0:01:39]}  Rac8 {[%clk 0:01:28]} 20. f5 {[%clk 0:01:31]}  Nd7 {[%clk 0:01:21]} 21. Qf4 {[%clk 0:01:17]}  Qc7 {[%clk 0:01:07]} 22. fxg6 {[%clk 0:00:57]}  fxg6 {[%clk 0:01:05]} 23. Re3 {[%clk 0:00:31]}  Rf8 {[%clk 0:01:03]} 24. Qg5 {[%clk 0:00:27]}  Nb6 {[%clk 0:00:54]} 25. b3 {[%clk 0:00:19]}  Rf2 {[%clk 0:00:51]} 26. Rd2 {[%clk 0:00:17]}  Rxd2 {[%clk 0:00:48]} 27. Kxd2 {[%clk 0:00:18]}  d4 {[%clk 0:00:49]} 28. Rf3 {[%clk 0:00:16]}  dxc3+ {[%clk 0:00:48]} 29. Kc1 {[%clk 0:00:17]}  Qd8 {[%clk 0:00:34]} 30. Qf4 {[%clk 0:00:17]}  Qd2+ {[%clk 0:00:27]} 31. Qxd2 {[%clk 0:00:15]}  cxd2+ {[%clk 0:00:28]} 32. Kxd2 {[%clk 0:00:15]}  Bc6 {[%clk 0:00:29]} 33. Rf2 {[%clk 0:00:14]}  Bxg2 {[%clk 0:00:28]} 34. Rxg2 {[%clk 0:00:15]}  Nd7 {[%clk 0:00:29]} 35. Re2 {[%clk 0:00:15]}  Rc5 {[%clk 0:00:29]} 36. Kd3 {[%clk 0:00:14]}  Rxe5 {[%clk 0:00:28]} 37. Rg2 {[%clk 0:00:13]}  g5 {[%clk 0:00:26]} 38. c4 {[%clk 0:00:12]}  Nf6 {[%clk 0:00:25]} 39. b4 {[%clk 0:00:10]}  Re4 {[%clk 0:00:24]} 40. Rf2 {[%clk 0:00:10]}  Rf4 {[%clk 0:00:24]} 41. Re2 {[%clk 0:00:09]}  Kf7 {[%clk 0:00:24]} 42. c5 {[%clk 0:00:08]}  Rxb4 {[%clk 0:00:25]} 43. Kc3 {[%clk 0:00:08]}  Rxg4 {[%clk 0:00:24]} 44. Rb2 {[%clk 0:00:07]}  Ne4+ {[%clk 0:00:23]} 45. Kd4 {[%clk 0:00:06]}  Nd6+ {[%clk 0:00:24]} 46. Kd3 {[%clk 0:00:04]}  Nb5 {[%clk 0:00:22]} 47. c6 {[%clk 0:00:01]}  bxc6 {[%clk 0:00:22]} 48. Rc2 {[%clk 0:00:01]}  Rd4+ {[%clk 0:00:20]} 49. Ke3 {[%clk 0:00:02]}  Rd6 {[%clk 0:00:20]} 50. Rc5 {[%clk 0:00:02]}  Kg6 {[%clk 0:00:21]} 51. Kf3 {[%clk 0:00:02]}  Nd4+ {[%clk 0:00:20]} 52. Kg4 {[%clk 0:00:02]}  Nf5 {[%clk 0:00:21]} 53. Ra5 {[%clk 0:00:01]}  Nxh6+ {[%clk 0:00:21]} 0-1


[Site "https://www.chess.com"]

[Event "Titled Tuesday Blitz September 14 2021"]
[White "Pridorozhni, Aleksei"]
[Black "Chernomordik, Pavel"]
[WhiteFideId "4127870"]
[BlackFideId "2804530"]
[WhiteElo "2565"]
[BlackElo "2256"]
[Result "1-0"]
[Round "01"]
[TimeControl "180+1"]
[Date "2021.09.15"]
[WhiteClock "0:02:04"]
[BlackClock "0:00:32"]

1. e4 {[%clk 0:03:00]}  g6 {[%clk 0:02:59]} 2. d4 {[%clk 0:03:00]}  Bg7 {[%clk 0:02:59]} 3. Nc3 {[%clk 0:03:00]}  d6 {[%clk 0:02:59]} 4. f4 {[%clk 0:02:57]}  a6 {[%clk 0:02:58]} 5. Nf3 {[%clk 0:02:57]}  b5 {[%clk 0:02:58]} 6. Bd3 {[%clk 0:02:56]}  Nd7 {[%clk 0:02:56]} 7. e5 {[%clk 0:02:54]}  c5 {[%clk 0:02:53]} 8. exd6 {[%clk 0:02:52]}  cxd4 {[%clk 0:02:47]} 9. Ne4 {[%clk 0:02:46]}  Qb6 {[%clk 0:02:45]} 10. O-O {[%clk 0:02:43]}  exd6 {[%clk 0:02:24]} 11. f5 {[%clk 0:02:40]}  d5 {[%clk 0:02:11]} 12. Ng3 {[%clk 0:02:34]}  Ne7 {[%clk 0:02:00]} 13. Qe2 {[%clk 0:02:33]}  Bf6 {[%clk 0:01:44]} 14. Bg5 {[%clk 0:02:18]}  O-O {[%clk 0:01:37]} 15. Rae1 {[%clk 0:02:16]}  Nc6 {[%clk 0:01:29]} 16. Bh6 {[%clk 0:02:14]}  Nde5 {[%clk 0:01:15]} 17. Bxf8 {[%clk 0:02:12]}  Kxf8 {[%clk 0:01:15]} 18. fxg6 {[%clk 0:02:12]}  hxg6 {[%clk 0:01:10]} 19. Nxe5 {[%clk 0:02:12]}  Nxe5 {[%clk 0:01:08]} 20. Rxf6 {[%clk 0:02:11]}  Qxf6 {[%clk 0:01:06]} 21. Qxe5 {[%clk 0:02:11]}  Qxe5 {[%clk 0:01:00]} 22. Rxe5 {[%clk 0:02:12]}  Be6 {[%clk 0:01:01]} 23. Bxg6 {[%clk 0:02:10]}  Ke7 {[%clk 0:00:57]} 24. Bd3 {[%clk 0:02:09]}  Kd6 {[%clk 0:00:55]} 25. Re2 {[%clk 0:02:09]}  b4 {[%clk 0:00:51]} 26. b3 {[%clk 0:02:07]}  a5 {[%clk 0:00:50]} 27. Nf5+ {[%clk 0:02:08]}  Kc5 {[%clk 0:00:49]} 28. g4 {[%clk 0:02:06]}  a4 {[%clk 0:00:48]} 29. h4 {[%clk 0:02:06]}  axb3 {[%clk 0:00:48]} 30. axb3 {[%clk 0:02:06]}  Rh8 {[%clk 0:00:40]} 31. h5 {[%clk 0:02:05]}  Rg8 {[%clk 0:00:34]} 32. Rg2 {[%clk 0:02:05]}  f6 {[%clk 0:00:32]} 33. Kf2 {[%clk 0:02:04]} 1-0


[Site "https://www.chess.com"]

[Event "Titled Tuesday Blitz September 14 2021"]
[White "Sarana, Alexey"]
[Black "Devaev, Alexander"]
[WhiteFideId "24133795"]
[BlackFideId "4169395"]
[WhiteElo "2671"]
[BlackElo "2185"]
[Result "1-0"]
[Round "01"]
[TimeControl "180+1"]
[Date "2021.09.15"]
[WhiteClock "0:02:09"]
[BlackClock "0:00:53"]

1. e4 {[%clk 0:02:53]}  c6 {[%clk 0:02:59]} 2. Nf3 {[%clk 0:02:52]}  d5 {[%clk 0:03:00]} 3. d3 {[%clk 0:02:52]}  d4 {[%clk 0:02:21]} 4. c3 {[%clk 0:02:50]}  c5 {[%clk 0:02:19]} 5. g3 {[%clk 0:02:50]}  Nc6 {[%clk 0:02:18]} 6. Bg2 {[%clk 0:02:50]}  e5 {[%clk 0:02:17]} 7. O-O {[%clk 0:02:50]}  h6 {[%clk 0:02:17]} 8. a4 {[%clk 0:02:51]}  Bg4 {[%clk 0:02:14]} 9. Na3 {[%clk 0:02:50]}  Nf6 {[%clk 0:02:13]} 10. Nc4 {[%clk 0:02:50]}  Nd7 {[%clk 0:02:13]} 11. Qb3 {[%clk 0:02:48]}  Qc7 {[%clk 0:02:08]} 12. a5 {[%clk 0:02:47]}  Be7 {[%clk 0:02:01]} 13. cxd4 {[%clk 0:02:30]}  cxd4 {[%clk 0:01:58]} 14. Bd2 {[%clk 0:02:29]}  O-O {[%clk 0:01:42]} 15. Rfc1 {[%clk 0:02:29]}  Be6 {[%clk 0:01:42]} 16. Qc2 {[%clk 0:02:24]}  Rfd8 {[%clk 0:01:30]} 17. a6 {[%clk 0:02:17]}  Rdc8 {[%clk 0:01:20]} 18. Ncxe5 {[%clk 0:02:12]}  Nc5 {[%clk 0:01:05]} 19. Nxc6 {[%clk 0:02:10]}  bxc6 {[%clk 0:00:56]} 20. Nxd4 {[%clk 0:02:10]}  Rab8 {[%clk 0:00:54]} 21. Bf4 {[%clk 0:02:08]}  Bd6 {[%clk 0:00:53]} 22. Bxd6 {[%clk 0:02:08]}  Qxd6 {[%clk 0:00:53]} 23. Qxc5 {[%clk 0:02:09]} 1-0


[Site "https://www.chess.com"]

[Event "Titled Tuesday Blitz September 14 2021"]
[White "Svane, Rasmus"]
[Black "Abdulla, Murad"]
[WhiteFideId "4657101"]
[BlackFideId "2403757"]
[WhiteElo "2643"]
[BlackElo "2125"]
[Result "1-0"]
[Round "01"]
[TimeControl "180+1"]
[Date "2021.09.15"]
[WhiteClock "0:00:29"]
[BlackClock "0:00:10"]

1. Nf3 {[%clk 0:03:00]}  c5 {[%clk 0:03:00]} 2. c4 {[%clk 0:02:59]}  Nc6 {[%clk 0:03:00]} 3. e3 {[%clk 0:02:58]}  Nf6 {[%clk 0:02:49]} 4. Nc3 {[%clk 0:02:57]}  g6 {[%clk 0:02:43]} 5. d4 {[%clk 0:02:55]}  cxd4 {[%clk 0:02:43]} 6. exd4 {[%clk 0:02:56]}  d5 {[%clk 0:02:44]} 7. cxd5 {[%clk 0:02:57]}  Nxd5 {[%clk 0:02:44]} 8. Qb3 {[%clk 0:02:57]}  e6 {[%clk 0:02:44]} 9. Bb5 {[%clk 0:02:56]}  Bg7 {[%clk 0:02:41]} 10. O-O {[%clk 0:02:55]}  O-O {[%clk 0:02:39]} 11. Bxc6 {[%clk 0:02:55]}  bxc6 {[%clk 0:02:39]} 12. Re1 {[%clk 0:02:55]}  Ba6 {[%clk 0:02:14]} 13. Ne4 {[%clk 0:02:55]}  Rb8 {[%clk 0:02:13]} 14. Qd1 {[%clk 0:02:54]}  Nb4 {[%clk 0:01:59]} 15. Nc5 {[%clk 0:02:51]}  Bc4 {[%clk 0:01:59]} 16. Bf4 {[%clk 0:02:40]}  Rb6 {[%clk 0:01:50]} 17. b3 {[%clk 0:02:38]}  Bd5 {[%clk 0:01:49]} 18. Ne5 {[%clk 0:02:32]}  Bxe5 {[%clk 0:01:29]} 19. Rxe5 {[%clk 0:02:04]}  Na6 {[%clk 0:01:22]} 20. Nd3 {[%clk 0:01:56]}  Nb4 {[%clk 0:01:10]} 21. Nc5 {[%clk 0:01:52]}  Na6 {[%clk 0:01:10]} 22. Na4 {[%clk 0:01:45]}  Rb7 {[%clk 0:01:05]} 23. Re3 {[%clk 0:01:37]}  f6 {[%clk 0:00:55]} 24. h4 {[%clk 0:01:35]}  Qe7 {[%clk 0:00:44]} 25. Rc1 {[%clk 0:01:31]}  Qb4 {[%clk 0:00:42]} 26. Rd3 {[%clk 0:01:14]}  e5 {[%clk 0:00:39]} 27. Bd2 {[%clk 0:01:00]}  Qb5 {[%clk 0:00:36]} 28. Bh6 {[%clk 0:00:58]}  e4 {[%clk 0:00:20]} 29. Re3 {[%clk 0:00:57]}  Re8 {[%clk 0:00:20]} 30. Nc3 {[%clk 0:00:58]}  Qa5 {[%clk 0:00:20]} 31. Qd2 {[%clk 0:00:51]}  Rbe7 {[%clk 0:00:16]} 32. Nxe4 {[%clk 0:00:37]}  Qxd2 {[%clk 0:00:16]} 33. Nxd2 {[%clk 0:00:38]}  Rxe3 {[%clk 0:00:16]} 34. fxe3 {[%clk 0:00:37]}  Nb4 {[%clk 0:00:16]} 35. a3 {[%clk 0:00:35]}  Na6 {[%clk 0:00:13]} 36. e4 {[%clk 0:00:33]}  Bxe4 {[%clk 0:00:12]} 37. Nxe4 {[%clk 0:00:34]}  Rxe4 {[%clk 0:00:13]} 38. Rxc6 {[%clk 0:00:34]}  Rxh4 {[%clk 0:00:11]} 39. Be3 {[%clk 0:00:30]}  Re4 {[%clk 0:00:10]} 40. Kf2 {[%clk 0:00:29]} 1-0


[Site "https://www.chess.com"]

[Event "Titled Tuesday Blitz September 14 2021"]
[White "Tokman, Ariel"]
[Black "Jones, Gawain C B"]
[WhiteFideId "117420"]
[BlackFideId "409561"]
[WhiteElo "2293"]
[BlackElo "2657"]
[Result "0-1"]
[Round "01"]
[TimeControl "180+1"]
[Date "2021.09.15"]
[WhiteClock "0:00:10"]
[BlackClock "0:00:30"]

1. d4 {[%clk 0:02:54]}  Nf6 {[%clk 0:02:59]} 2. Bf4 {[%clk 0:02:53]}  c5 {[%clk 0:02:58]} 3. e3 {[%clk 0:02:51]}  g6 {[%clk 0:02:57]} 4. Nf3 {[%clk 0:02:50]}  Bg7 {[%clk 0:02:57]} 5. Be2 {[%clk 0:02:50]}  O-O {[%clk 0:02:57]} 6. O-O {[%clk 0:02:50]}  b6 {[%clk 0:02:57]} 7. h3 {[%clk 0:02:50]}  Bb7 {[%clk 0:02:58]} 8. a4 {[%clk 0:02:50]}  d6 {[%clk 0:02:57]} 9. c3 {[%clk 0:02:48]}  Nbd7 {[%clk 0:02:54]} 10. Nbd2 {[%clk 0:02:47]}  Ne4 {[%clk 0:02:54]} 11. Nxe4 {[%clk 0:02:35]}  Bxe4 {[%clk 0:02:55]} 12. Qb3 {[%clk 0:02:28]}  e5 {[%clk 0:02:52]} 13. dxe5 {[%clk 0:02:27]}  Nxe5 {[%clk 0:02:51]} 14. Nxe5 {[%clk 0:02:23]}  dxe5 {[%clk 0:02:51]} 15. Rfd1 {[%clk 0:02:21]}  Qe7 {[%clk 0:02:47]} 16. Bg3 {[%clk 0:02:20]}  h5 {[%clk 0:02:47]} 17. Bc4 {[%clk 0:02:03]}  h4 {[%clk 0:02:40]} 18. Bh2 {[%clk 0:02:03]}  Qg5 {[%clk 0:02:39]} 19. Bf1 {[%clk 0:02:01]}  Bf3 {[%clk 0:02:22]} 20. Re1 {[%clk 0:01:37]}  Rad8 {[%clk 0:02:19]} 21. Kh1 {[%clk 0:01:36]}  Bd5 {[%clk 0:02:17]} 22. Qc2 {[%clk 0:01:28]}  f5 {[%clk 0:02:17]} 23. Rad1 {[%clk 0:01:27]}  Kh7 {[%clk 0:02:15]} 24. f4 {[%clk 0:01:07]}  Qe7 {[%clk 0:02:06]} 25. c4 {[%clk 0:01:01]}  Be4 {[%clk 0:02:03]} 26. Qf2 {[%clk 0:01:01]}  exf4 {[%clk 0:01:57]} 27. Qxf4 {[%clk 0:00:51]}  Bh6 {[%clk 0:01:52]} 28. Qf2 {[%clk 0:00:45]}  Rxd1 {[%clk 0:01:51]} 29. Rxd1 {[%clk 0:00:45]}  Rd8 {[%clk 0:01:52]} 30. Rxd8 {[%clk 0:00:40]}  Qxd8 {[%clk 0:01:53]} 31. Bf4 {[%clk 0:00:40]}  Bg7 {[%clk 0:01:49]} 32. Kg1 {[%clk 0:00:34]}  g5 {[%clk 0:01:48]} 33. Bh2 {[%clk 0:00:33]}  Qd1 {[%clk 0:01:45]} 34. g3 {[%clk 0:00:32]}  hxg3 {[%clk 0:01:32]} 35. Bxg3 {[%clk 0:00:33]}  Qxa4 {[%clk 0:01:24]} 36. Qe2 {[%clk 0:00:26]}  Kg6 {[%clk 0:01:24]} 37. Qd2 {[%clk 0:00:25]}  Qc6 {[%clk 0:01:15]} 38. b3 {[%clk 0:00:21]}  Qe6 {[%clk 0:01:09]} 39. h4 {[%clk 0:00:20]}  f4 {[%clk 0:00:55]} 40. exf4 {[%clk 0:00:13]}  gxh4 {[%clk 0:00:55]} 41. Bf2 {[%clk 0:00:10]}  Qg4+ {[%clk 0:00:40]} 42. Kh2 {[%clk 0:00:10]}  Qf3 {[%clk 0:00:39]} 43. Qd6+ {[%clk 0:00:10]}  Kh5 {[%clk 0:00:30]} 0-1


[Site "https://www.chess.com"]